bitfinex-derivatives/quotes_SOLF0:USTF0_20250413
["timestamp","ask_amount","ask_price","bid_price","bid_amount"]
[1744575775686,45.12,129.39,129.33,3.11578866]
[1744575775888,0.0538195,129.37,129.36,7.7313]
[1744575776782,0.0538195,129.37,129.35,7.732]
[1744575776984,0.0538195,129.37,129.34,0.05595133]
[1744575777182,0.0538195,129.37,129.35,7.7319]
[1744575777981,7.7323,129.35,129.34,0.05595133]
[1744575778177,22.55178072,129.37,129.24,47.0857]
[1744575778380,44.9,129.36,129.28,7.736]
[1744575778787,7.7344,129.32,129.28,7.736]
[1744575779288,0.05726199,129.31,129.29,7.78567532]
[1744575780490,0.05726199,129.31,129.3,7.7353]
[1744575782093,0.05726199,129.31,129.29,7.78567532]
[1744575782290,0.05726199,129.31,129.29,0.04997532]
[1744575782694,0.05726199,129.31,129.3,7.7353]
[1744575784399,0.05726199,129.31,129.3,10.86623555]
[1744575784895,0.05726199,129.31,129.3,10.86538337]
[1744575785098,0.05726199,129.31,129.3,10.86509535]
[1744575785295,0.05726199,129.31,129.3,7.7353]
[1744575786500,1.54655119,129.32,129.31,7.7347]
[1744575786696,44.9,129.36,129.31,3.13591634]
[1744575786899,44.9,129.36,129.32,3.13634334]
[1744575787097,44.9,129.36,129.34,7.7326]
[1744575787601,44.95052818,129.36,129.34,7.78775756]
[1744575788398,44.95052818,129.36,129.35,7.7323]
[1744575788799,44.95052818,129.36,129.34,0.05515756]
[1744575789003,44.95052818,129.36,129.34,7.78775756]
[1744575789601,44.95052818,129.36,129.34,0.05515756]
[1744575790603,7.7323,129.35,129.34,0.05515756]
[1744575792213,52.68242818,129.36,129.34,0.05515756]
[1744575792503,44.95052818,129.36,129.34,0.05515756]
[1744575793807,7.7323,129.35,129.34,0.05515756]
[1744575794899,67.4484894,129.36,129.26,364.0]
[1744575795108,22.49796122,129.33,129.24,2.0497]
[1744575795305,22.49796122,129.33,129.25,3.13676882]
[1744575795503,22.49796122,129.33,129.24,2.0497]
[1744575795705,6.0596,129.34,129.25,3.13599951]
[1744575795907,6.0596,129.34,129.24,2.0497]
[1744575796105,0.0506918,129.31,129.28,0.05433873]
[1744575796305,44.9706918,129.31,129.28,0.05433873]
[1744575796602,1.5467904,129.3,129.28,0.05433873]
[1744575796910,9.2821904,129.3,129.28,0.05433873]
[1744575797303,1.5467904,129.3,129.28,0.05433873]
[1744575798007,0.0506918,129.31,129.3,7.7353]
[1744575798213,0.0506918,129.31,129.3,9.8596]
[1744575798703,0.0506918,129.31,129.3,12.98685026]
[1744575798899,0.0506918,129.31,129.28,0.05433873]
[1744575799908,0.0506918,129.31,129.29,7.7359]
[1744575800308,0.0506918,129.31,129.28,0.05433873]
[1744575800607,0.0506918,129.31,129.3,7.7353]
[1744575802108,0.0506918,129.31,129.29,7.7356]
[1744575802305,0.0506918,129.31,129.28,0.05433873]
[1744575803211,7.7353,129.3,129.28,0.05433873]
[1744575803707,0.0506918,129.31,129.28,0.05433873]
[1744575804402,7.7359,129.29,129.28,0.05433873]
[1744575804601,52.4559,129.29,129.28,0.05433873]
[1744575804810,54.00281004,129.29,129.28,0.05433873]
[1744575806713,7.7379,129.26,129.21,4.1172]
[1744575806908,68.76487126,129.29,129.21,2.1267]
[1744575807109,22.49796122,129.26,129.19,9.08972541]
[1744575807310,1.54738878,129.25,129.2,3.12560037]
[1744575807507,1.54738878,129.25,129.22,7.7397]
[1744575807703,1.54738878,129.25,129.19,9.08972541]
[1744575807908,1.54738878,129.25,129.22,0.05789073]
[1744575807909,1.60163875,129.25,129.22,0.05789073]
[1744575809009,1.60163875,129.25,129.22,7.79769073]
[1744575809215,44.72,129.24,129.22,0.05789073]
[1744575809414,1.54762825,129.23,129.22,0.05789073]
[1744575810119,9.28712825,129.23,129.22,0.05789073]
[1744575810611,1.54762825,129.23,129.16,4.2852]
[1744575810809,1.54762825,129.23,129.17,5.13544515]
[1744575811010,1.54762825,129.23,129.18,3.12474515]
[1744575811205,1.54762825,129.23,129.19,3.12336295]
[1744575811404,1.54762825,129.23,129.17,2.0107]
[1744575811611,0.05453499,129.22,129.2,0.05933894]
[1744575811815,0.05453499,129.22,129.21,7.7407]
[1744575816312,0.05453499,129.22,129.2,0.05933894]
[1744575816916,0.05453499,129.22,129.2,7.80053894]
[1744575817117,0.05453499,129.22,129.2,0.05933894]
[1744575817416,1.54786781,129.21,129.2,0.05933894]
[1744575817712,9.28856781,129.21,129.2,0.05933894]
[1744575817919,1.54786781,129.21,129.14,2.1308]
[1744575818211,14.08969766,129.18,129.11,2.1534]
[1744575818412,58.82969766,129.18,129.12,3.11689259]
[1744575818612,58.82969766,129.18,129.11,2.1534]
[1744575818815,9.29174713,129.17,129.13,7.7452]
[1744575819017,1.54846701,129.16,129.13,7.7452]
[1744575819313,1.59822208,129.16,129.14,7.80194184]
[1744575819815,1.59822208,129.16,129.14,0.05714184]
[1744575820519,7.7443,129.15,129.14,0.05714184]
[1744575821617,9.34222208,129.16,129.14,0.05714184]
[1744575821917,1.54858691,129.15,129.14,0.05714184]
[1744575822109,9.29348691,129.15,129.08,6.0493]
[1744575822620,9.29348691,129.15,129.11,7.7461]
[1744575823215,0.05677607,129.14,129.12,7.79841274]
[1744575823418,1.60548289,129.14,129.12,0.05281274]
[1744575823819,1.60548289,129.14,129.13,7.7455]
[1744575827023,1.60548289,129.14,129.12,7.79861274]
[1744575827224,1.60548289,129.14,129.12,0.05281274]
[1744575827413,7.7455,129.13,129.12,0.05281274]
[1744575827618,46.30882676,129.13,129.05,2.0419]
[1744575827921,7.7474,129.1,129.05,2.0419]
[1744575828121,1.54894671,129.12,129.05,2.0419]
[1744575828325,1.54930668,129.09,129.05,2.0419]
[1744575828724,0.05019854,129.08,129.06,0.04946832]
[1744575829224,0.05019854,129.08,129.07,7.7491]
[1744575831225,0.05019854,129.08,129.06,7.79886832]
[1744575831422,1.54954675,129.07,129.06,0.04946832]
[1744575831619,1.54954675,129.07,128.97,400.09526182]
[1744575831818,13.33434675,129.07,128.97,4.0452]
[1744575832225,5.58504675,129.07,128.97,4.0452]
[1744575832420,5.58504675,129.07,128.97,26.60551093]
[1744575832626,1.54954675,129.07,128.97,26.60551093]
[1744575832827,1.54954675,129.07,129.04,7.7505]
[1744575833229,1.60242804,129.07,129.04,0.05887601]
[1744575833823,22.56031093,129.06,128.98,7.7541]
[1744575834026,22.56031093,129.03,128.98,7.7541]
[1744575834226,7.7533,129.0,128.93,6.1162]
[1744575834426,1.55050779,128.99,128.91,72.01476377]
[1744575835131,0.05286376,128.97,128.94,0.05436936]
[1744575835326,1.55086848,128.96,128.94,0.05436936]
[1744575836420,7.7563,128.95,128.94,0.05436936]
[1744575836929,1.55086848,128.96,128.94,0.05436936]
[1744575837327,1.55086848,128.96,128.95,7.7563]
[1744575839531,1.55086848,128.96,128.94,7.81096936]
[1744575839832,1.55086848,128.96,128.94,0.05436936]
[1744575840532,1.55086848,128.96,128.94,7.81096936]
[1744575840731,1.55086848,128.96,128.94,0.05436936]
[1744575840933,1.55086848,128.96,128.87,46.6429]
[1744575840934,7.7564,128.95,128.87,46.6429]
[1744575841237,1.55086848,128.96,128.87,46.6429]
[1744575841532,1.55086848,128.96,128.94,7.7565]
[1744575842132,1.60180098,128.96,128.94,7.81160369]
[1744575842334,1.60180098,128.96,128.94,0.05510369]
[1744575842527,1.60180098,128.96,128.87,46.6429]
[1744575842833,7.7566,128.95,128.91,7.7581]
[1744575843032,1.55110904,128.94,128.87,46.6429]
[1744575843434,1.55110904,128.94,128.88,22.56031093]
[1744575843634,44.6,128.98,128.89,0.0520046]
[1744575843836,44.6,128.98,128.88,22.56031093]
[1744575844036,44.6,128.98,128.97,7.7551]
[1744575844232,7.7529,129.01,128.97,7.7551]
[1744575844536,658.64,129.04,128.94,22.56031093]
[1744575844734,7.7519,129.03,128.95,4.1624]
[1744575844937,0.05399741,129.0,128.98,0.05261643]
[1744575845132,0.05399741,129.0,128.99,7.7539]
[1744575847441,44.62,129.04,129.02,7.7516]
[1744575847840,44.62,129.04,129.03,7.7515]
[1744575848438,44.62,129.04,129.02,7.81076666]
[1744575848640,44.62,129.04,128.95,4.1624]
[1744575848941,44.67607755,129.04,129.03,7.7515]
[1744575849143,44.62,129.04,129.03,7.7515]
[1744575851143,44.62,129.04,129.02,0.05112536]
[1744575851343,1.55002712,129.03,128.96,2.1392]
[1744575851742,7.7521,129.02,128.98,7.7544]
[1744575852043,1.55014726,129.02,128.96,2.1392]
[1744575852244,1.55014726,129.02,128.99,7.7535]
[1744575852544,0.05057841,129.0,128.98,0.05265391]
[1744575852842,0.05057841,129.0,128.98,7.80675391]
[1744575853142,0.05057841,129.0,128.98,0.05265391]
[1744575854138,0.05057841,129.0,128.99,7.7539]
[1744575854741,0.05057841,129.0,128.98,0.05265391]
[1744575856046,2.1337,129.09,128.98,44.67265391]
[1744575856047,2.1428,129.07,128.98,44.67265391]
[1744575856344,46.7537,129.09,128.99,2.1592]
[1744575857142,0.05870915,129.05,129.03,0.05938437]
[1744575857648,0.05870915,129.05,129.03,7.81048437]
[1744575857944,0.05870915,129.05,129.03,0.05938437]
[1744575858444,0.05870915,129.05,129.04,7.7509]
[1744575858642,0.05870915,129.05,129.03,0.05938437]
[1744575859446,44.62,129.04,129.0,7.7529]
[1744575859745,44.62,129.04,128.96,366.1039]
[1744575859947,52.3712,129.04,129.01,7.7526]
[1744575860547,52.42925852,129.04,129.01,7.80492294]
[1744575861048,7.7515,129.03,129.01,7.80492294]
[1744575861346,7.7515,129.03,129.01,0.05232294]
[1744575861746,52.42925852,129.04,129.01,7.80492294]
[1744575862349,44.67805852,129.04,129.02,7.7521]
[1744575862649,44.67805852,129.04,129.01,0.05232294]
[1744575862650,0.05805852,129.04,129.01,0.05232294]
[1744575863045,0.05805852,129.04,129.03,7.7515]
[1744575863446,360.0,129.17,129.01,0.05232294]
[1744575863644,7.7476,129.1,129.07,7.7488]
[1744575863850,50.7096,129.12,129.02,2.1461]
[1744575864152,7.7476,129.1,129.07,7.7486]
[1744575864552,50.7096,129.12,129.02,2.1461]
[1744575864749,0.05331007,129.1,129.08,7.7481]
[1744575865149,0.05331007,129.1,129.07,0.05250882]
[1744575865355,7.7479,129.09,129.07,0.05250882]
[1744575865650,0.05331007,129.1,129.07,0.05250882]
[1744575865849,7.80091007,129.1,129.07,7.80150882]
[1744575866055,0.05331007,129.1,129.07,0.05250882]
[1744575866555,7.80081007,129.1,129.07,7.80130882]
[1744575866854,0.05331007,129.1,129.07,0.05250882]
[1744575867055,0.05331007,129.1,129.08,7.7483]
[1744575867750,0.05331007,129.1,129.09,7.7479]
[1744575869354,0.05331007,129.1,129.07,0.05250882]
[1744575870264,1.54930668,129.09,129.07,0.05250882]
[1744575870964,0.05331007,129.1,129.09,7.7479]
[1744575871159,658.46,129.16,129.08,4.233]
[1744575871555,44.4,129.16,129.08,4.233]
[1744575872160,44.4,129.16,129.12,7.746]
[1744575872462,0.05877154,129.13,129.12,7.746]
[1744575883277,0.05877154,129.13,129.11,0.0553996]
[1744575884274,0.05877154,129.13,129.11,7.8019996]
[1744575884773,0.05877154,129.13,129.11,0.0553996]
[1744575885076,0.05877154,129.13,129.12,7.7461]
[1744575886277,44.4,129.16,129.15,7.7443]
[1744575886575,44.38,129.2,129.09,24.66551093]
[1744575886777,44.38,129.2,129.1,44.38]
[1744575886778,7.7421,129.19,129.1,44.38]
[1744575886976,9.29020743,129.19,129.16,7.7434]
[1744575887479,9.34967104,129.19,129.16,7.79454736]
[1744575889181,1.60757104,129.19,129.16,0.05114736]
[1744575889377,1.54822727,129.18,129.16,0.05114736]
[1744575889777,7.7431,129.17,129.16,0.05114736]
[1744575890172,45.92822727,129.18,129.16,0.05114736]
[1744575891578,45.92822727,129.18,129.16,7.79444736]
[1744575892183,45.92822727,129.18,129.17,7.7431]
[1744575892686,45.92822727,129.18,129.16,7.79454736]
[1744575893191,45.92822727,129.18,129.16,0.05114736]
[1744575893488,45.92822727,129.18,129.17,7.7431]
[1744575894286,45.92822727,129.18,129.16,7.79454736]
[1744575894786,53.67102727,129.18,129.16,0.05114736]
[1744575895284,7.7431,129.17,129.16,0.05114736]
[1744575895488,1.54834713,129.17,129.1,44.38]
[1744575895684,7.72364713,129.17,129.1,44.38]
[1744575895992,15.46694713,129.17,129.14,7.7446]
[1744575896590,15.52021167,129.17,129.14,7.79764209]
[1744575897189,7.7437,129.16,129.14,7.79764209]
[1744575897390,7.7437,129.16,129.14,0.05304209]
[1744575897990,15.52031167,129.17,129.14,7.79784209]
[1744575898190,7.77691167,129.17,129.14,7.79784209]
[1744575898491,7.77691167,129.17,129.15,7.7442]
[1744575899590,7.77691167,129.17,129.14,7.79774209]
[1744575899791,15.52051167,129.17,129.14,7.79774209]
[1744575900291,7.77691167,129.17,129.15,7.7442]
[1744575900492,7.77691167,129.17,129.14,0.05304209]
[1744575900792,15.52031167,129.17,129.14,7.79764209]
[1744575900989,14.10188082,129.16,129.14,0.05304209]
[1744575901189,1.54858691,129.15,129.05,364.0]
[1744575901497,7.7483,129.09,129.02,40.38516182]
[1744575901684,51.9083,129.09,129.02,40.38516182]
[1744575901886,44.16,129.09,129.02,54.48704264]
[1744575902287,44.16,129.09,129.02,40.38516182]
[1744575902495,0.05304933,129.07,129.04,0.05004889]
[1744575902684,0.05304933,129.07,129.06,7.7497]
[1744575905390,44.16,129.13,129.04,0.05004889]
[1744575905598,1.54894671,129.12,129.02,48.4499]
[1744575905896,1.54894671,129.12,129.03,3.0822413]
[1744575906098,9.29534671,129.12,129.04,3.0822413]
[1744575906298,1.54894671,129.12,129.02,48.4499]
[1744575906596,0.04884062,129.09,129.08,7.7485]
[1744575909498,1.5981473,129.09,129.07,0.05260891]
[1744575909698,45.7581473,129.09,129.07,0.05260891]
[1744575911404,53.5063473,129.09,129.07,0.05260891]
[1744575911591,45.7581473,129.09,129.07,0.05260891]
[1744575912505,7.7485,129.08,129.07,0.05260891]
[1744575912694,9.29792671,129.08,129.07,0.05260891]
[1744575913501,7.7499,129.06,129.03,7.751]
[1744575913697,1.5497869,129.05,129.03,7.751]
[1744575914500,1.60227414,129.05,129.03,7.80082287]
[1744575914800,1.60227414,129.05,129.04,7.7509]
[1744575915100,1.60227414,129.05,129.03,0.04982287]
[1744575915296,1.60227414,129.05,129.03,7.80102287]
[1744575915497,9.35257414,129.05,129.03,0.04982287]
[1744575915900,1.60227414,129.05,129.03,0.04982287]
[1744575916100,1.60227414,129.05,128.94,994.30231107]
[1744575916101,44.18,129.04,128.93,60.75398928]
[1744575916300,44.18,129.04,128.94,2.0779]
[1744575916701,1.55002712,129.03,128.94,2.0779]
[1744575916995,1.55002712,129.03,129.02,7.7521]
[1744575917694,7.7527,129.01,128.94,2.0779]
[1744575917906,1.55002712,129.03,128.94,2.0779]
[1744575918702,0.05008631,129.0,128.97,0.04934618]
[1744575918898,1.6004739,129.0,128.98,7.7544]
[1744575919306,1.6004739,129.0,128.97,0.04934618]
[1744575920101,1.6004739,129.0,128.98,7.7543]
[1744575922401,1.55050779,128.99,128.97,0.04934618]
[1744575922605,44.2,128.98,128.97,0.04934618]
[1744575923097,45.750628,128.98,128.97,0.04934618]
[1744575923300,53.505128,128.98,128.97,0.04934618]
[1744575924304,53.505128,128.98,128.95,7.7559]
[1744575924805,45.750628,128.98,128.91,46.3303]
[1744575925506,0.05556132,128.96,128.95,7.7563]
[1744575926110,1.550628,128.98,128.97,7.7551]
[1744575926806,11.7796,129.05,129.02,7.7521]
[1744575927308,11.83806726,129.05,129.02,7.80258086]
[1744575927507,4.08736726,129.05,129.02,7.80258086]
[1744575928607,4.08736726,129.05,129.03,7.7514]
[1744575929403,11.83766726,129.05,129.02,7.80228086]
[1744575929908,4.08736726,129.05,129.02,0.05048086]
[1744575930609,4.08736726,129.05,129.03,7.7514]
[1744575931210,0.05846726,129.05,129.04,7.7509]
[1744575931507,0.05846726,129.05,129.02,0.05048086]
[1744575932004,0.05846726,129.05,129.03,7.7511]
[1744575933310,7.80896726,129.05,129.02,7.80238086]
[1744575936109,0.05846726,129.05,129.02,0.05048086]
[1744575936314,22.66343477,129.05,128.96,2.0743]
[1744575936509,2.1562,129.04,128.96,2.0743]
[1744575936813,51.7317,129.03,128.96,2.0743]
[1744575937214,43.98,129.03,128.96,2.0743]
[1744575937415,0.05277272,129.01,128.98,0.02233057]
[1744575937815,0.05277272,129.01,129.0,7.7533]
[1744575939714,22.60496751,129.08,128.99,2.1402]
[1744575939910,43.98,129.08,129.0,2.14]
[1744575940115,22.60496751,129.06,128.99,2.1402]
[1744575940515,7.7506,129.05,129.02,7.7518]
[1744575940720,22.60496751,129.06,129.02,7.7518]
[1744575940919,0.05047822,129.05,129.02,7.8107917]
[1744575942827,1.60026512,129.05,129.02,7.8107917]
[1744575943627,1.60026512,129.05,129.03,7.7515]
[1744575944528,1.60026512,129.05,129.02,7.8107917]
[1744575947532,9.35086512,129.05,129.02,7.8107917]
[1744575949132,23.48073155,129.05,129.02,7.8107917]
[1744575950734,15.73013155,129.05,129.03,7.7515]
[1744575950931,1.60026512,129.05,129.02,0.0589917]
[1744575951331,1.60026512,129.05,129.04,7.7509]
[1744575951535,1.60026512,129.05,129.02,0.0589917]
[1744575951834,1.60026512,129.05,129.03,7.7509]
[1744575952634,1.60026512,129.05,129.04,7.7509]
[1744575952833,1.60026512,129.05,129.02,0.0589917]
[1744575953037,1.549907,129.04,129.02,0.0589917]
[1744575953837,1.549907,129.04,129.02,7.8104917]
[1744575955039,1.549907,129.04,129.03,7.7515]
[1744575957540,1.549907,129.04,129.02,7.8107917]
[1744575957737,1.549907,129.04,129.02,0.0589917]
[1744575958143,1.549907,129.04,129.03,7.7515]
[1744575960841,1.549907,129.04,129.02,7.8107917]
[1744575961039,1.549907,129.04,129.02,0.0589917]
[1744575961239,45.309907,129.04,129.02,0.0589917]
[1744575961946,7.7515,129.03,129.02,0.0589917]
[1744575962145,9.30152712,129.03,129.02,0.0589917]
[1744575963346,1.55002712,129.03,129.02,7.8110917]
[1744575963848,1.55002712,129.03,129.02,0.0589917]
[1744575964246,15.67989355,129.03,128.96,2.0743]
[1744575964552,14.12986643,129.01,128.92,45.8685]
[1744575964746,45.31038759,129.0,128.93,3.10623804]
[1744575964941,15.68037422,128.99,128.94,3.10623804]
[1744575965247,9.305528,128.98,128.92,2.1085]
[1744575965442,9.36141902,128.98,128.93,3.10500981]
[1744575965642,9.36141902,128.98,128.94,7.7564]
[1744575965943,9.36141902,128.98,128.92,2.1085]
[1744575966142,1.60651902,128.98,128.93,3.10182685]
[1744575966342,1.60651902,128.98,128.92,2.1085]
[1744575966545,1.60651902,128.98,128.95,7.7559]
[1744575967349,9.36131902,128.98,128.95,7.7559]
[1744575967648,9.36131902,128.98,128.92,2.1085]
[1744575967649,1.60651902,128.98,128.94,7.7566]
[1744575967846,1.60651902,128.98,128.92,2.1085]
[1744575968045,1.55074823,128.97,128.91,4.0561]
[1744575968247,1.55074823,128.97,128.93,7.757]
[1744575968445,7.7572,128.94,128.89,1.9848]
[1744575968646,0.04915365,128.95,128.9,3.09237751]
[1744575968845,0.04915365,128.95,128.9,7.7588]
[1744575969044,7.7575,128.93,128.9,7.7588]
[1744575969342,1.55110904,128.94,128.9,7.7588]
[1744575969747,1.55110904,128.94,128.87,2.0889]
[1744575970044,14.12986643,128.93,128.87,2.0889]
[1744575970249,45.38229482,128.92,128.87,9.8498]
[1744575970548,1.55147001,128.91,128.87,9.8498]
[1744575971750,9.31067001,128.91,128.87,9.8498]
[1744575972048,53.09067001,128.91,128.87,7.7609]
[1744575972246,7.7594,128.9,128.86,7.7614]
[1744575972655,0.05108584,128.89,128.83,3.9722]
[1744575972847,14.12986643,128.88,128.83,3.9722]
[1744575973261,1.6027966,128.89,128.83,3.9722]
[1744575974152,9.3628966,128.89,128.85,7.7618]
[1744575974353,9.3628966,128.89,128.83,3.9722]
[1744575974954,1.55183116,128.88,128.83,3.9722]
[1744575975355,1.55183116,128.88,128.85,7.7619]
[1744575975657,1.55183116,128.88,128.83,3.9722]
[1744575975857,1.55183116,128.88,128.85,7.762]
[1744575976257,9.31263116,128.88,128.85,7.762]
[1744575977150,1.55183116,128.88,128.85,7.762]
[1744575977857,7.7626,128.85,128.75,14.12986643]
[1744575978154,43.78,128.87,128.78,2.0999]
[1744575978357,0.05542341,128.81,128.79,14.12986643]
[1744575978560,43.78,128.87,128.78,2.0999]
[1744575978755,0.05381497,128.81,128.78,2.0999]
[1744575978958,14.12986643,128.86,128.78,2.0999]
[1744575979157,0.05384773,128.81,128.8,7.7653]
[1744575979358,7.7628,128.85,128.78,2.0999]
[1744575979559,0.05824252,128.82,128.78,2.0999]
[1744575979756,0.05824252,128.82,128.81,7.7643]
[1744575980360,43.78,128.87,128.78,16.22976643]
[1744575980561,51.5415,128.87,128.78,16.22976643]
[1744575981063,51.5415,128.87,128.84,7.7628]
[1744575981464,51.59360986,128.87,128.84,7.82014619]
[1744575982762,43.83210986,128.87,128.85,7.7623]
[1744575982956,43.83210986,128.87,128.84,0.05734619]
[1744575983761,0.05210986,128.87,128.86,7.7617]
[1744575984961,0.05210986,128.87,128.85,7.7621]
[1744575985866,0.05210986,128.87,128.86,7.7617]
[1744575986163,0.05210986,128.87,128.84,0.05734619]
[1744575986968,0.05210986,128.87,128.86,7.7617]
[1744575987968,0.05210986,128.87,128.84,0.05734619]
[1744575988868,0.05210986,128.87,128.86,7.7617]
[1744575994073,0.05210986,128.87,128.84,0.05734619]
[1744575995575,0.05210986,128.87,128.86,7.7617]
[1744576003383,52.86001824,128.91,128.89,7.7595]
[1744576003983,60.61881824,128.91,128.88,7.7602]
[1744576004383,60.67491124,128.91,128.88,7.81860089]
[1744576005082,52.91611124,128.91,128.89,7.7598]
[1744576005681,60.67481124,128.91,128.88,7.81860089]
[1744576006584,43.856093,128.91,128.88,0.05840089]
[1744576006780,0.056093,128.91,128.89,9.06001824]
[1744576007082,0.056093,128.91,128.9,7.7593]
[1744576010587,43.58,128.96,128.89,9.06001824]
[1744576010890,43.58,128.96,128.92,9.06001824]
[1744576011092,11.20201824,128.99,128.97,7.7547]
[1744576011291,9.06001824,128.99,128.94,9.06001824]
[1744576011590,9.06001824,128.99,128.98,7.7545]
[1744576012094,43.63757051,129.0,128.96,9.06001824]
[1744576012290,43.63757051,129.0,128.99,7.7539]
[1744576017893,0.05757051,129.0,128.99,7.7539]
[1744576020196,614.38,129.1,128.99,21.89521676]
[1744576020493,20.49171676,129.14,129.04,14.13521676]
[1744576020687,6.3565,129.14,129.04,57.45521676]
[1744576021197,7.7458,129.13,129.1,7.7472]
[1744576021497,6.3565,129.14,129.1,7.7472]
[1744576021697,0.05075663,129.13,129.1,7.80642308]
[1744576022193,14.18597339,129.13,129.1,0.05922308]
[1744576022398,14.13521676,129.11,129.0,4.2268]
[1744576022594,14.13521676,129.04,128.97,2.0131]
[1744576023095,21.88641676,129.04,128.99,7.7536]
[1744576023294,14.13521676,129.04,128.99,7.7536]
[1744576023495,14.13521676,129.02,129.0,0.05247182]
[1744576023999,7.7527,129.01,129.0,0.05247182]
[1744576024389,57.48669166,129.02,128.94,409.4264]
[1744576024697,7.7537,129.0,128.96,7.7555]
[1744576025595,0.05131513,128.99,128.97,0.05368381]
[1744576026499,0.05131513,128.99,128.97,7.80858381]
[1744576026701,0.05131513,128.99,128.97,0.05368381]
[1744576028105,0.05131513,128.99,128.98,7.7545]
[1744576030804,1.513e-05,128.99,128.98,7.7545]
[1744576033304,53.0311,129.07,129.04,7.7506]
[1744576033504,45.2818,129.07,129.05,1.5497869]
[1744576033803,7.75,129.06,129.05,1.5497869]
[1744576034099,45.2818,129.07,129.05,1.5497869]
[1744576034292,0.05014301,129.07,129.05,1.60444117]
[1744576034494,0.05014301,129.07,129.06,7.7497]
[1744576036198,0.05014301,129.07,129.05,1.60444117]
[1744576036199,7.79924301,129.07,129.05,1.60444117]
[1744576036400,7.79924301,129.07,129.04,7.7507]
[1744576036401,57.48535977,129.07,128.99,1.9716]
[1744576036599,14.13521676,129.05,128.96,6.3285]
[1744576036798,21.88671676,129.03,128.99,7.7539]
[1744576036999,65.18671676,129.03,128.99,7.7539]
[1744576037200,43.3,129.03,128.97,14.13521676]
[1744576037703,0.0534711,129.01,128.99,0.05504069]
[1744576038106,0.0534711,129.01,128.99,7.80854069]
[1744576038296,0.0534711,129.01,128.99,0.05504069]
[1744576038494,0.0534711,129.01,129.0,7.7533]
[1744576043614,0.0534711,129.01,128.99,7.80884069]
[1744576044509,0.0534711,129.01,129.0,7.7533]
[1744576045110,0.0534711,129.01,128.99,7.80864069]
[1744576047910,0.0534711,129.01,128.99,0.05504069]
[1744576048113,14.18868786,129.01,128.91,6.1424]
[1744576048312,14.13521676,128.99,128.9,407.08]
[1744576048616,7.756,128.96,128.93,7.7571]
[1744576049413,7.81426687,128.96,128.93,7.81316776]
[1744576049912,0.05826687,128.96,128.93,7.81316776]
[1744576051012,7.81396687,128.96,128.93,7.81316776]
[1744576051214,7.81396687,128.96,128.93,0.05606776]
[1744576051709,0.05826687,128.96,128.93,0.05606776]
[1744576051914,14.13521676,128.95,128.86,43.08]
[1744576052108,45.17,128.94,128.86,43.08]
[1744576052610,7.7581,128.92,128.88,7.7603]
[1744576052809,16.13761676,128.93,128.88,7.7603]
[1744576053014,7.759,128.91,128.87,7.7607]
[1744576053213,7.759,128.91,128.83,6.2613]
[1744576053613,0.05531153,128.88,128.83,6.2613]
[1744576054113,0.05531153,128.88,128.87,7.7607]
[1744576054608,43.15531153,128.88,128.8,400.09526182]
[1744576054813,50.8608,128.88,128.8,50.23047858]
[1744576055011,0.05252677,128.85,128.8,50.23047858]
[1744576055212,0.05252677,128.85,128.84,7.7629]
[1744576058318,0.05252677,128.85,128.79,6.1744]
[1744576058514,0.05252677,128.85,128.8,1.55279503]
[1744576058816,0.05252677,128.85,128.82,7.7639]
[1744576059023,0.05252677,128.85,128.83,1.55243343]
[1744576060716,0.05252677,128.85,128.83,9.31593343]
[1744576061618,0.05252677,128.85,128.83,1.55243343]
[1744576062214,0.05252677,128.85,128.83,9.31583343]
[1744576063214,0.05252677,128.85,128.84,7.7629]
[1744576064618,43.12,128.92,128.83,15.68765019]
[1744576064918,43.12,128.92,128.85,14.13521676]
[1744576065120,43.12,128.92,128.9,7.7592]
[1744576065414,43.12,128.92,128.91,1.55147001]
[1744576065720,50.93635345,128.92,128.91,1.55147001]
[1744576065913,43.17825345,128.92,128.91,1.55147001]
[1744576066617,50.93635345,128.92,128.91,1.55147001]
[1744576067315,7.7587,128.91,128.9,0.05341197]
[1744576067520,43.17825345,128.92,128.86,7.7614]
[1744576067722,65.82981379,128.92,128.79,2.1214]
[1744576067915,7.7603,128.89,128.85,7.762]
[1744576068220,65.77156034,128.92,128.8,3.9406]
[1744576068416,7.761,128.88,128.84,7.7626]
[1744576068618,50.93501562,128.88,128.84,7.7626]
[1744576068918,43.17401562,128.88,128.85,7.762]